fUSD/lending_fUSD_20240901
["ID","MTS","AMOUNT","RATE_DAILY","PERIOD"]
[336835943,1725201038146,-5277.52186964,0.0001298,2]
[336835945,1725201038157,-39793.97902959,0.0001298,2]
[336835947,1725201038167,-150.56,0.0001299,2]
[336835949,1725201038177,-500.0,0.00012999,2]
[336835951,1725201038186,-564.8003345,0.00012999,2]
[336835954,1725201038197,-500.0,0.00012999,2]
[336835956,1725201038211,-500.0,0.00012999,2]
[336835958,1725201038223,-500.0,0.00012999,2]
[336835960,1725201038234,-500.0,0.00012999,2]
[336835962,1725201038244,-500.0,0.00012999,2]
[336835964,1725201038267,-309.94255527,0.00012999,2]
[336835966,1725201038279,-500.0,0.00012999,2]
[336835968,1725201038290,-500.0,0.00012999,2]
[336835970,1725201038302,-258.20192451,0.00012999,2]
[336835973,1725201038318,-646.27923956,0.00012999,2]
[336835975,1725201038330,-200.75042718,0.00012999,2]
[336835977,1725201038341,-4529.8053462,0.00012999,2]
[336835979,1725201038352,-7045.68114318,0.00013,2]
[336835981,1725201038365,-887.83016339,0.00013,2]
[336835983,1725201038381,-742.11629914,0.00013,2]
[336835986,1725201038394,-277.0527081,0.00013,2]
[336835988,1725201038409,-5755.0,0.00013,2]
[336836095,1725201039520,-5843.81203055,0.00013,2]
[336836098,1725201039532,-1447.08866371,0.00013,2]
[336836100,1725201039544,-255.09446514,0.00013,2]
[336836104,1725201039571,-1391.73850551,0.00013,2]
[336836115,1725201039669,-334.64924053,0.00013,2]
[336836117,1725201039680,-18918.55938786,0.00013,2]
[336836119,1725201039691,-5766.6,0.00013,2]
[336836121,1725201039703,-308.02155651,0.00013,2]
[336836123,1725201039713,-298.31412405,0.00013,2]
[336836146,1725201039922,-352.75909744,0.00013,2]
[336836148,1725201039935,-342.108,0.00013,2]
[336836150,1725201039946,-1487.92434299,0.00013,2]
[336836153,1725201039957,-387.72733961,0.00013,2]
[336836155,1725201039968,-4905.37844259,0.00013,2]
[336836157,1725201039981,-337.374,0.00013,2]
[336836168,1725201040083,-440.96951925,0.00013,2]
[336836395,1725201042478,-425.50000003,0.00013,2]
[336836397,1725201042493,-401.3749942,0.00013,2]
[336836398,1725201042505,-357.36375668,0.00013,2]
[336836399,1725201042563,-677.74825824,0.00013,2]
[336836513,1725201044460,-802.06340159,0.00013,2]
[336836515,1725201044471,-4061.26921003,0.00013,2]
[336836535,1725201044708,-320.26401847,0.00013,2]
[336836539,1725201044743,-28900.0,0.00013,2]
[336836541,1725201044755,-3918.7910805,0.00013,2]
[336836543,1725201044768,-2164.3747125,0.00013,2]
[336836545,1725201044779,-1963.95623651,0.00013,2]
[336836547,1725201044790,-3842.50661118,0.00013,2]
[336836646,1725201046061,-578.0,0.00013,2]
[336836648,1725201046072,-571.83159536,0.00013,2]
[336836651,1725201046083,-578.7,0.00013,2]
[336836653,1725201046095,-4553.8190213,0.00013,2]
[336836655,1725201046107,-239703.57259452,0.00013,2]
[336836659,1725201046131,-5791.56,0.00013,2]
[336836661,1725201046143,-5770.61280002,0.00013,2]
[336836678,1725201046296,-2887.099745,0.00013,2]
[336836680,1725201046310,-432.77116256,0.00013,2]
[336836682,1725201046322,-768.85,0.00013,2]
[336836685,1725201046334,-346.76974357,0.00013,2]
[336836687,1725201046347,-850.0,0.00013,2]
[336836690,1725201046370,-5024.88033492,0.00013,2]
[336836692,1725201046382,-17390.57331725,0.00013,2]
[336836864,1725201203107,219.99999851,0.00027,120]
[336836865,1725201221095,1000.0,0.00025,60]
[336836866,1725201518880,-610.07,0.0001118,2]
[336836867,1725201518903,-250.0,0.00012236,2]
[336836868,1725201518926,-23900.0,0.00012338,2]
[336836869,1725201518949,-200.0,0.00012522,2]
[336836870,1725201518972,-39.93,0.00012522,2]
[336836871,1725201519644,-140.07,0.00012522,2]
[336836872,1725201519666,-475.3,0.00012699,2]
[336836873,1725201519688,-2500.0,0.0001278,2]
[336836874,1725201519709,-300.0,0.00012799,2]
[336836875,1725201519729,-560.2683,0.000128,2]
[336836876,1725201519750,-205.6154,0.000128,2]
[336836877,1725201519771,-20818.7463,0.000128,2]
[336836878,1725201520071,-25000.0,0.000128,2]
[336836879,1725201521266,-23189.612104,0.000128,2]
[336836880,1725201521290,-166.67060189,0.000128,2]
[336836881,1725201521312,-395.42072,0.0001287,2]
[336836882,1725201521335,-500.0,0.00012879,2]
[336836883,1725201521358,-500.0,0.00012879,2]
[336836884,1725201521382,-248.29657411,0.00012879,2]
[336836885,1725201521806,-251.70342589,0.00012879,2]
[336836886,1725201521829,-219.95064761,0.00012879,2]
[336836887,1725201521852,-24528.3459265,0.0001288,2]
[336836888,1725201539394,-25000.0,0.0001288,2]
[336836889,1725201540013,-25000.0,0.0001288,2]
[336836890,1725201552688,-18428.5996,0.0001288,2]
[336836891,1725201872952,550.0,0.00011,2]
[336836906,1725202231673,-250.0,0.00012503,2]
[336836907,1725202231683,-582.94,0.00012503,2]
[336836908,1725202231693,-250.0,0.00012578,2]
[336836909,1725202231703,-180.0,0.00012589,2]
[336836910,1725202231711,-1588.03289394,0.00012615,2]
[336836911,1725202231726,-8411.96710606,0.00012615,2]
[336836912,1725202231735,-3746.6023,0.0001278,2]
[336836913,1725202231744,-1000.0,0.00012845,2]
[336836914,1725202231753,-127308.3602735,0.0001288,2]
[336836915,1725202231763,-7500.0,0.000129,2]
[336836916,1725202231772,-2568.2901476,0.000129,2]
[336836917,1725202231781,-518.39221935,0.000129,2]
[336836918,1725202231790,-330.8495964,0.000129,2]
[336836919,1725202231799,-10534.55,0.00012927,2]
[336836920,1725202231809,-500.0,0.00012973,2]
[336836921,1725202231818,-500.0,0.00012973,2]
[336836922,1725202231827,-2000.0,0.00012987,3]
[336836923,1725202231837,-2652.0546564,0.00012995,2]
[336836924,1725202231846,-2552.5438093,0.00012995,2]
[336836925,1725202231856,-1110.28091695,0.00012999,3]
[336836926,1725202231866,-390115.01300313,0.00012999,2]
[336836927,1725202231881,-486.61826601,0.00012999,2]
[336836928,1725202231893,-9511.97964083,0.00012999,2]
[336836929,1725202231924,-1357.03628517,0.00012999,2]
[336836930,1725202231935,-892.78441105,0.00012999,2]
[336836936,1725202232172,-6.674e-05,0.00012999,2]
[336836972,1725202238541,638.29,0.00010608,2]
[336837080,1725202239809,-475.394608,0.00012872,2]
[336837082,1725202239821,-162.895392,0.00012872,2]
[336837084,1725202239831,-290.983008,0.00012997,2]
[336837101,1725202239998,-510.5239397,0.00012997,2]
[336837103,1725202240008,-2441.1958518,0.00012999,2]
[336837109,1725202240055,-5926.76029984,0.00012999,2]
[336837111,1725202240067,-265.59294491,0.00012999,2]
[336837374,1725202242697,-436.78634993,0.00012999,2]
[336837376,1725202242708,-600.64996105,0.00012999,2]
[336837382,1725202242752,-52966.17945955,0.00012999,2]
[336837383,1725202242764,-281.326473,0.00012999,2]
[336837385,1725202242777,-1017.6830018,0.00012999,2]
[336837388,1725202242788,-694.74624943,0.00012999,2]
[336837390,1725202242800,-446.51173508,0.00012999,2]
[336837392,1725202242812,-7979.52814858,0.00012999,2]
[336837398,1725202242865,-575.47544634,0.00012999,2]
[336837400,1725202242877,-313.60578957,0.00012999,2]
[336837402,1725202242889,-96255.10728269,0.00012999,2]
[336837413,1725202242987,-281076.37397762,0.00012999,2]
[336837415,1725202242998,-460.32635449,0.00012999,2]
[336837672,1725202245842,-380.87213384,0.00012999,2]
[336837673,1725202245865,-289.33779545,0.00012999,2]
[336837674,1725202245876,-3676.60743738,0.00012999,2]
[336837675,1725202245888,-627289.17822872,0.00012999,2]
[336837676,1725202245897,-3371.05365036,0.00012999,2]
[336837677,1725202245907,-347.20620232,0.00012999,2]
[336837678,1725202245916,-769.0,0.00013,2]
[336837679,1725202245926,-425316.29132897,0.00013,2]
[336837680,1725202245936,-395055.14321868,0.00013,2]
[336837681,1725202245948,-5380.291501,0.00013,2]
[336837682,1725202245959,-405.466,0.00013,2]
[336837798,1725202247067,-368.15615288,0.00012999,2]
[336837800,1725202247076,-711.13569829,0.00013,2]
[336837802,1725202247088,-4004.75103814,0.00013,2]
[336837810,1725202247168,-301.86941789,0.00013,2]
[336837816,1725202247219,-5750.01635685,0.00013,2]
[336837819,1725202247231,-531.81771946,0.00013,2]
[336837821,1725202247242,-269.24,0.00013,2]
[336837838,1725202600526,157.02,0.00010959,2]
[336837839,1725202922441,421.42,0.00027,120]
[336837841,1725203193770,168.1536637,0.00027,120]
[336837842,1725203195790,168.1536637,0.00027,120]
[336837843,1725203197163,168.1536637,0.00027,120]
[336837844,1725203198432,168.1536637,0.00027,120]
[336837845,1725203206167,168.15366377,0.00027,120]
[336837847,1725203316199,631.91,0.00010454,2]
[336837848,1725203341713,-206.10063656,0.00011191,2]
[336837854,1725203432111,-162.89936344,0.00011191,2]
[336837855,1725203432120,-291.47,0.00012239,2]
[336837856,1725203432130,-640.16,0.00012336,2]
[336837857,1725203432139,-9007.05,0.00012351,2]
[336837858,1725203432151,-973.16,0.00012431,2]
[336837859,1725203432161,-800.0,0.00012488,2]
[336837860,1725203432171,-250.0,0.0001257,2]
[336837861,1725203432180,-3797.17,0.00012601,2]
[336837862,1725203432190,-631.91,0.00012718,2]
[336837863,1725203432199,-209.12,0.00012729,2]
[336837864,1725203432208,-180.0,0.00012775,2]
[336837865,1725203432219,-175.99,0.00012859,2]
[336837866,1725203432228,-505.94531,0.0001287,2]
[336837867,1725203432239,-1331.55480987,0.0001289,2]
[336837868,1725203432249,-150.0,0.00012899,2]
[336837869,1725203432260,-3807.1454,0.000129,2]
[336837870,1725203432270,-67840.1666,0.000129,2]
[336837871,1725203432280,-1000.0,0.000129,3]
[336837872,1725203432290,-7500.0,0.000129,2]
[336837873,1725203432300,-330.84959639,0.000129,2]
[336837874,1725203432309,-1685.52682518,0.00012999,2]
[336837875,1725203432319,-738.0,0.00013,2]
[336837876,1725203432329,-2064310.03449995,0.00013,2]
[336837877,1725203432369,-446.45853724,0.00013,2]
[336837878,1725203432380,-369.0,0.00013,2]
[336837880,1725203438033,-13929.74214198,0.00013,2]
[336837881,1725203438045,-1873.76763892,0.00013,2]
[336837882,1725203438056,-252.67,0.00013,2]
[336837883,1725203438107,-4679.55187661,0.00013,2]
[336837884,1725203438202,-4981.79999993,0.00013,2]
[336837885,1725203438213,-29166.63838452,0.00013,2]
[336837886,1725203438298,-577.87520853,0.00013,2]
[336837887,1725203438310,-5325.80416996,0.00013,2]
[336837888,1725203438322,-1240.41847258,0.00013,2]
[336837889,1725203438333,-1111.14398307,0.00013,2]
[336837899,1725203438605,-998.78355,0.00013,2]
[336837903,1725203438643,-622.70733141,0.00013,2]
[336838038,1725203440001,-425.0,0.00013,2]
[336838048,1725203440097,-593.35695094,0.00013,2]
[336838050,1725203440108,-24924.90000006,0.00013,2]
[336838053,1725203440120,-613.51078504,0.00013,2]
[336838055,1725203440131,-2903.397762,0.00013,2]
[336838057,1725203440143,-662.04999995,0.00013,2]
[336838059,1725203440158,-617.455,0.00013,2]
[336838070,1725203440264,-708.38454702,0.00013,2]
[336838072,1725203440276,-884.29734848,0.00013,2]
[336838075,1725203440287,-440.96864,0.00013,2]
[336838088,1725203440409,-1685.52682517,0.00012999,2]
[336838090,1725203440418,-139681.14922366,0.00013,2]
[336838092,1725203440431,-665.71467956,0.00013,2]
[336838566,1725203445825,-2494.99999999,0.00013,2]
[336838574,1725203445900,-854.55749319,0.00013,2]
[336838613,1725203446685,-4004.59242709,0.00013,2]
[336838614,1725203446694,-671.0,0.00013,2]
[336838615,1725203446704,-224292.64906454,0.00013,2]
[336838616,1725203446715,-5917.44045035,0.00013,2]
[336838634,1725203599893,500.0,0.00024867,120]
[336838635,1725203600308,500.0,0.00026467,120]
[336838636,1725203604254,500.0,0.00024932,120]
[336838638,1725203676584,550.0,0.00011,2]
[336838640,1725204199718,500.0,0.00026156,120]
[336838641,1725204203148,500.0,0.00025946,120]
[336838642,1725204313981,683.13,0.00010232,2]
[336838643,1725204329271,4606.91449342,0.000101,2]
[336838652,1725204632012,-291.47,0.00011843,2]
[336838653,1725204632023,-180.0,0.00012043,2]
[336838654,1725204632033,-2429.18,0.00012102,2]
[336838655,1725204632042,-250.0,0.00012102,2]
[336838656,1725204632052,-1500.0,0.00012102,2]
[336838657,1725204632063,-770.72949558,0.00012102,2]
[336838658,1725204632072,-3355.63875442,0.00012218,2]
[336838659,1725204632162,-955.37507359,0.00012218,2]
[336838660,1725204632185,-122.99357199,0.00012218,2]
[336838661,1725204632195,-470.19042801,0.00012236,2]
[336838662,1725204632209,-169.80957199,0.00012236,2]
[336838663,1725204632218,-773.1,0.00012293,2]
[336838664,1725204632228,-857.09042801,0.00012318,2]
[336838665,1725204632241,-3797.92957199,0.00012318,2]
[336838666,1725204632250,-328.0,0.0001247,2]
[336838669,1725204632260,-19.4921802,0.00012496,2]
[336838670,1725204632279,-663.6378198,0.00012496,2]
[336838671,1725204632288,-236.3621802,0.00012496,2]
[336838672,1725204632299,-263.6278198,0.00012496,2]
[336838673,1725204632309,-217.8427032,0.00012618,2]
[336838674,1725204632320,-1437.62195802,0.00012618,2]
[336838675,1725204632332,-3720.49834643,0.00012618,2]
[336838676,1725204632343,-5375.96300757,0.00012649,2]
[336838677,1725204632352,-150.0,0.00012679,2]
[336838678,1725204632362,-93964.51264953,0.0001268,2]
[336838683,1725204632442,-766.71121484,0.0001268,2]
[336838709,1725204638643,-2383.05429346,0.0001268,2]
[336838712,1725204638657,-1014.6173005,0.0001268,2]
[336838714,1725204638671,-993.61738895,0.0001268,2]
[336838717,1725204638684,-5846.0,0.0001268,2]
[336838719,1725204638698,-1738.93951158,0.0001268,2]
[336838722,1725204638712,-544.38170658,0.0001268,2]
[336838724,1725204638726,-16055.5,0.0001268,2]
[336838727,1725204638740,-1544.59791416,0.0001268,2]
[336838729,1725204638752,-1070.82849079,0.0001268,2]
[336838731,1725204638764,-1466.43431141,0.0001268,2]
[336838737,1725204638807,-8125.29365348,0.0001268,2]
[336838745,1725204638879,-8575.51651501,0.0001268,2]
[336838747,1725204638890,-5375.96300757,0.00012681,2]
[336838749,1725204638902,-5375.96300757,0.00012712,2]
[336838751,1725204638913,-169.87,0.00012718,2]
[336838753,1725204638924,-5375.96300757,0.00012743,2]
[336838755,1725204638934,-169.87,0.0001275,2]
[336838758,1725204638946,-5375.96300757,0.00012775,2]
[336838760,1725204638957,-169.87,0.00012782,2]
[336838762,1725204638968,-1205.4242,0.000128,2]
[336838764,1725204638978,-5375.96300757,0.00012806,2]
[336838766,1725204638989,-4115.24913366,0.00012837,2]
[336838912,1725204640389,-1260.71387391,0.00012837,2]
[336838914,1725204640400,-439.28612609,0.00012869,2]
[336838920,1725204640448,-341.19156875,0.00012869,2]
[336838923,1725204640461,-870.30566951,0.00012869,2]
[336838924,1725204640474,-300.0,0.00012869,2]
[336838925,1725204640568,-3425.17964322,0.00012869,2]
[336838926,1725204640579,-336.08734622,0.00012899,2]
[336838927,1725204640590,-500.0,0.00012899,2]
[336838929,1725204640601,-492.87242739,0.00012899,2]
[336838930,1725204640612,-90916.877,0.000129,2]
[336838932,1725204640622,-2139.003,0.000129,2]
[336838934,1725204640633,-23644.0532,0.000129,2]
[336838936,1725204640644,-1451.1123,0.000129,2]
[336838938,1725204640655,-7500.0,0.000129,2]
[336838940,1725204640665,-5375.96300757,0.000129,2]
[336838942,1725204640676,-1000.0,0.000129,2]
[336838944,1725204640687,-1167.39686299,0.000129,2]
[336838947,1725204640697,-237.4765173,0.0001299,2]
[336838949,1725204640708,-237.4765173,0.0001299,2]
[336838951,1725204640718,-237.4765173,0.0001299,2]
[336838953,1725204640729,-1194.04088155,0.00012999,3]
[336838955,1725204640739,-3606.75983892,0.00012999,2]
[336838957,1725204640750,-653.0,0.00013,2]
[336838959,1725204640760,-125756.34275753,0.00013,2]
[336838961,1725204640771,-15238406.45300824,0.00013,2]
[336838964,1725204640785,-1286384.22394425,0.00013,2]
[336838966,1725204640795,-600.0,0.00013,2]
[336838968,1725204640805,-1685377.80832512,0.00013,2]
[336838974,1725204640854,-2015.94855758,0.00013,2]
[336838977,1725204640867,-1250.25,0.00013,2]
[336838979,1725204640880,-701.66503495,0.00013,2]
[336838981,1725204640893,-1209.49724686,0.00013,2]
[336838985,1725204640920,-1765.19999999,0.00013,2]
[336839200,1725204643231,-4924.92,0.00013,2]
[336839202,1725204643243,-2498.82070866,0.00013,2]
[336839204,1725204643254,-895.88804481,0.00013,2]
[336839207,1725204643265,-271.99999994,0.00013,2]
[336839209,1725204643278,-321.51658598,0.00013,2]
[336839220,1725204643369,-92402.99795642,0.00013,2]
[336839222,1725204643380,-1509.89121034,0.00013,2]
[336839436,1725204645503,-858.925,0.00013,2]
[336839569,1725204646707,-7470.42668548,0.00013,2]
[336839572,1725204646720,-1038.78311956,0.00013,2]
[336839579,1725204646746,-3417.34393201,0.00013,2]
[336839583,1725204646758,-333.01477701,0.00013,2]
[336839592,1725204646796,-1173.3,0.00013,2]
[336839599,1725204646821,-77805.96774226,0.00013,2]
[336839605,1725204646856,-300052.73858443,0.00013,2]
[336839607,1725204646867,-831.659,0.00013,2]
[336839610,1725204646879,-788.36999,0.00013,2]
[336839615,1725204646925,-745.5246954,0.00013,2]
[336839618,1725204646937,-49739.22678139,0.00013,2]
[336839620,1725204646949,-1215.30012531,0.00013,2]
[336839993,1725204672767,-500.0,0.00012899,2]
[336839994,1725204672789,-500.0,0.00012899,2]
[336839995,1725204672812,-179.78880749,0.00012899,2]
[336839996,1725204672832,-645.0,0.00013,2]
[336839997,1725204672857,-289115.21119251,0.00013,2]
[336839998,1725204981243,248.75513813,0.0002,120]
[336840001,1725205069524,748.21621746,0.0001,2]
[336840002,1725205069547,9253.58307704,0.0001,2]
[336840003,1725205096045,503.12220462,0.0001,2]
[336840009,1725205141803,851.68934232,0.00027,120]
[336840010,1725205189427,1238.0,0.00027,120]
[336840012,1725205385976,243.29471834,0.00010416,2]
[336840013,1725205385998,422.62528166,0.00010416,2]
[336840015,1725205757028,157.02,0.00010959,2]
[336840032,1725205832292,-1000.0,0.00011869,2]
[336840033,1725205832303,-1138.45793186,0.00011896,2]
[336840034,1725205832313,-262.4,0.00011996,2]
[336840035,1725205832323,-250.0,0.00012225,2]
[336840036,1725205832333,-300.0,0.00012258,2]
[336840037,1725205832342,-17107.11,0.00012567,2]
[336840038,1725205832352,-3829.6703,0.00012575,2]
[336840039,1725205832362,-759.64356013,0.0001265,2]
[336840040,1725205832371,-150.0,0.00012674,2]
[336840041,1725205832381,-39019.2789,0.00012675,2]
[336840042,1725205832391,-665.92,0.00012679,2]
[336840043,1725205832401,-1100.0,0.000127,2]
[336840044,1725205832411,-1500.0,0.00012727,2]
[336840045,1725205832421,-1500.0,0.00012729,2]
[336840046,1725205832431,-155.59736033,0.00012746,2]
[336840047,1725205832445,-1500.0,0.00012752,2]
[336840048,1725205832454,-1500.0,0.00012754,2]
[336840049,1725205832464,-150.0,0.00012758,2]
[336840050,1725205832474,-1500.0,0.00012805,2]
[336840051,1725205832483,-1500.0,0.00012811,2]
[336840052,1725205832492,-1500.0,0.00012824,2]
[336840053,1725205832502,-1500.0,0.00012869,2]
[336840054,1725205832512,-1910.03696891,0.0001287,2]
[336840055,1725205832522,-2709.3243,0.00012896,2]
[336840056,1725205832531,-10382.3295,0.00012896,2]
[336840057,1725205832541,-418.24877718,0.00012896,2]
[336840058,1725205832550,-342.435,0.00012896,2]
[336840059,1725205832559,-1288.0812,0.000129,2]
[336840060,1725205832568,-150.0,0.00012958,2]
[336840062,1725205832578,-1500.0,0.00012979,2]
[336840064,1725205832587,-150.0,0.00012989,2]
[336840066,1725205832597,-114616.3503703,0.00012996,2]
[336840067,1725205832607,-12189.3623029,0.00012996,2]
[336840068,1725205832617,-6620.89804335,0.00012997,2]
[336840069,1725205832626,-500.0,0.00012999,2]
[336840070,1725205832635,-335.11773299,0.00012999,2]
[336840072,1725205832645,-587.84278679,0.00012999,2]
[336840073,1725205832655,-634.0,0.00013,2]
[336840074,1725205832665,-233818.30605413,0.00013,2]
[336840075,1725205832676,-29368.6,0.00013,2]
[336840076,1725205832749,-116916.0,0.00013,2]
[336840077,1725205832798,-2914.0164,0.00013,2]
[336840078,1725205838199,-3091.6,0.00012258,2]
[336840080,1725205838317,-777.16020434,0.00012258,2]
[336840081,1725205838328,-1080.68345125,0.00012258,2]
[336840082,1725205838379,-7985.46791296,0.00012258,2]
[336840083,1725205838389,-112899.94541711,0.00013,2]
[336840084,1725205838443,-336.47217302,0.00013,2]
[336840085,1725205838509,-393.01182328,0.00013,2]
[336840086,1725205838521,-58445.99999999,0.00013,2]
[336840224,1725205840235,-360317.5130887,0.00013,2]
[336840232,1725205840302,-13471.89695095,0.00013,2]
[336840240,1725205840364,-1341.45000002,0.00013,2]
[336840242,1725205840376,-262.894995,0.00013,2]
[336840244,1725205840387,-2202.03923942,0.00013,2]
[336840246,1725205840398,-1949.02711396,0.00013,2]
[336840249,1725205840409,-1800.3862206,0.00013,2]
[336840257,1725205840486,-642.84,0.00013,2]
[336840260,1725205840498,-365.76822172,0.00013,2]
[336840509,1725205843202,-535.295496,0.00013,2]
[336840517,1725205843266,-285.84053967,0.00013,2]
[336840525,1725205843330,-2746.70024498,0.00013,2]
[336840527,1725205843341,-24549.5792947,0.00013,2]
[336840529,1725205843352,-11820.50224,0.00013,2]
[336840531,1725205843363,-16268.07293523,0.00013,2]
[336840838,1725205846367,-264.06840755,0.00013,2]
[336840840,1725205846380,-353.47,0.00013,2]
[336840844,1725205846408,-27812.27962863,0.00013,2]
[336840847,1725205846421,-1000.63426617,0.00013,2]
[336840851,1725205846448,-5833.06272,0.00013,2]
[336840853,1725205846462,-704.85845544,0.00013,2]
[336840855,1725205846473,-258.1659564,0.00013,2]
[336840868,1725205846589,-1554.23207167,0.00013,2]
[336840871,1725205846600,-11695.5444,0.00013,2]
[336840873,1725205846612,-614.95,0.00013,2]
[336841041,1725205882410,8894.00683729,0.00025,60]
[336841042,1725205998768,500.0,0.00026156,120]
[336841043,1725206003057,500.0,0.00025946,120]
[336841044,1725206458160,824.2,0.00010959,2]
[336841046,1725206602987,500.0,0.00026541,120]
[336841047,1725206607223,500.0,0.00026329,120]
[336841048,1725206611884,200.0,0.00026541,120]
[336841050,1725206726880,751.5,0.00010959,2]
[336841052,1725206788050,151.41,9.282e-05,2]
[336841053,1725206789002,151.0,0.00010959,2]
[336841054,1725206789356,151.0,0.00010959,2]
[336841055,1725206954586,10000.0,0.00027,120]
[336841056,1725206960111,157.03,0.00010959,2]
[336841057,1725206972061,1170.8,0.00027,120]
[336841058,1725206984073,1006.86,9.41e-05,2]
[336841065,1725207032417,-4700.0,0.00011234,2]
[336841066,1725207032444,-600.0,0.00011234,2]
[336841067,1725207032466,-8913.233668,0.00011234,2]
[336841068,1725207032476,-663.86,0.00011253,2]
[336841069,1725207032485,-17478.56357371,0.00011291,2]
[336841070,1725207032494,-1370.55,0.00011305,2]
[336841071,1725207032504,-1852.42,0.00011326,2]
[336841072,1725207032513,-1833.81,0.00011437,2]
[336841073,1725207032523,-887.19,0.00011455,2]
[336841074,1725207032532,-161.85,0.00011498,2]
[336841075,1725207032542,-3677.68015522,0.00011519,2]
[336841076,1725207032551,-150.45,0.0001152,2]
[336841077,1725207032561,-499.99,0.0001152,2]
[336841078,1725207032570,-1000.0,0.00011527,2]
[336841079,1725207032579,-200.0,0.00011549,2]
[336841080,1725207032589,-231.2,0.00011552,2]
[336841082,1725207032598,-1636.34,0.00011569,2]
[336841084,1725207032607,-6408.1,0.00011654,2]
[336841086,1725207032617,-250.0,0.00011674,2]
[336841088,1725207032626,-1006.86,0.00011674,2]
[336841090,1725207032635,-1305.08,0.00011681,2]
[336841092,1725207032647,-150.0,0.00011697,2]
[336841093,1725207032656,-657.33,0.00011712,2]
[336841095,1725207032666,-150.0,0.00011739,2]
[336841098,1725207032675,-2532.65,0.0001174,2]
[336841101,1725207032686,-250.0,0.00011787,2]
[336841104,1725207032695,-250.0,0.00011818,2]
[336841107,1725207032705,-169.33,0.00011833,2]
[336841109,1725207032714,-10000.0,0.00011869,2]
[336841111,1725207032724,-1367.6398,0.000119,2]
[336841113,1725207032733,-14630.2008,0.000119,2]
[336841115,1725207032744,-500.0,0.00011962,2]
[336841117,1725207032753,-4494.07472503,0.0001199,2]
[336841119,1725207032763,-500.0,0.00012,2]
[336841121,1725207032772,-500.0,0.00012,2]
[336841123,1725207032786,-500.0,0.00012,2]
[336841125,1725207032795,-500.0,0.00012,2]
[336841127,1725207032805,-500.0,0.00012,2]
[336841129,1725207032815,-500.0,0.00012,2]
[336841131,1725207032824,-500.0,0.00012,2]
[336841133,1725207032834,-500.0,0.00012,2]
[336841135,1725207032843,-500.0,0.00012,2]
[336841137,1725207032854,-500.0,0.00012,2]
[336841139,1725207032863,-500.0,0.00012,2]
[336841141,1725207032873,-500.0,0.00012,2]
[336841143,1725207032883,-500.0,0.00012,2]
[336841145,1725207032893,-500.0,0.00012,2]
[336841147,1725207032903,-500.0,0.00012,2]
[336841149,1725207032912,-500.0,0.00012,2]
[336841151,1725207032922,-500.0,0.00012,2]
[336841153,1725207032932,-500.0,0.00012,2]
[336841155,1725207032941,-500.0,0.00012,2]
[336841157,1725207032951,-500.0,0.00012,2]
[336841159,1725207032961,-500.0,0.00012,2]
[336841161,1725207032971,-500.0,0.00012,2]
[336841163,1725207032981,-500.0,0.00012,2]
[336841165,1725207032990,-500.0,0.00012,2]
[336841167,1725207033000,-500.0,0.00012,2]
[336841168,1725207033009,-500.0,0.00012,2]
[336841170,1725207033019,-500.0,0.00012,2]
[336841172,1725207033029,-500.0,0.00012,2]
[336841174,1725207033039,-500.0,0.00012,2]
[336841176,1725207033049,-500.0,0.00012,2]
[336841179,1725207033060,-500.0,0.00012,2]
[336841181,1725207033070,-500.0,0.00012,2]